[Event "28th Hit Open-A 2024"]
[Site "Nova Gorica"]
[Date "2024.01.29"]
[Round "5.18"]
[White "Bazilius, Augustinas"]
[Black "Kukushkin, Ivan"]
[Result "1/2-1/2"]
[ECO "B45"]
[WhiteElo "2030"]
[BlackElo "1890"]
[Annotator "NA RC"]
[PlyCount "80"]
[EventDate "2024.01.22"]
[EventType "swiss"]
[EventCountry "SLO"]
[SourceTitle "playchess.com"]
[Source "ChessBase"]
[SourceQuality "1"]
[TimeControl "5400+30"]

1. e4 {[%emt 0:00:48]} c5 {[%emt 0:10:12]} 2. Nf3 {[%emt 0:00:08]} Nc6 {[%emt 0:00:04]} 3. d4 {[%emt 0:00:11]} cxd4 {[%emt 0:00:04]} 4. Nxd4 {[%emt 0:00:14]} Nf6 {[%emt 0:00:07]} 5. Nc3 {[%emt 0:00:07]} e6 {[%emt 0:00:16]} 6. Nxc6 {[%emt 0:00:06]} bxc6 {[%emt 0:00:04]} 7. e5 {[%emt 0:00:08]} Nd5 {[%emt 0:00:04]} 8. Ne4 {[%emt 0:00:08]} Qc7 {[%emt 0:00:05]} 9. f4 {[%emt 0:00:06]} Qb6 {[%emt 0:00:04]} 10. c4 {[%emt 0:00:07]} Bb4+ {[%emt 0:00:09]} 11. Ke2 {[%emt 0:00:01]} f5 {[%emt 0:00:06]} 12. Nf2 {[%emt 0:01:04]} Ne7 {[%emt 0:01:01]} 13. Nd3 {[%emt 0:32:28]} Bc5 {[%emt 0:11:37]} 14. Nxc5 {[%emt 0:05:48]} Qxc5 {[%emt 0:01:52]} 15. b3 {[%emt 0:02:18]} g5 {[%emt 0:01:34]} 16. Qd6 {[%emt 0:00:26]} Qa5 {[%emt 0:01:21]} 17. Bd2 {[%emt 0:05:29]} Qd8 {[%emt 0:01:45]} 18. h4 {[%emt 0:03:23]} gxh4 {[%emt 0:05:32]} 19. Rxh4 {[%emt 0:02:50]} Ng6 {[%emt 0:00:52]} 20. Rh5 {[%emt 0:01:59]} Kf7 {[%emt 0:04:41]} 21. Kf2 {[%emt 0:04:59]} Qb6+ {[%emt 0:05:06]} 22. Be3 {[%emt 0:00:02]} Qa5 {[%emt 0:00:28]} 23. Bd3 {[%emt 0:01:20]} Qd8 {[%emt 0:02:40]} 24. Rah1 {[%emt 0:01:04]} Qg8 {[%emt 0:04:53]} 25. Bxf5 {[%emt 0:07:06]} exf5 {[%emt 0:03:06]} 26. e6+ {[%emt 0:00:13]} Ke8 {[%emt 0:02:40]} 27. Bd4 {[%emt 0:00:28]} dxe6 {[%emt 0:00:40]} 28. Bxh8 {[%emt 0:01:49]} Qxh8 {[%emt 0:01:08]} 29. Qxc6+ {[%emt 0:00:01]} Kf8 {[%emt 0:00:18]} 30. Qxa8 {[%emt 0:00:22]} Qd4+ {[%emt 0:00:05]} 31. Ke1 {[%emt 0:05:02]} Qa1+ {[%emt 0:01:07]} 32. Kf2 {[%emt 0:02:35]} Qd4+ {[%emt 0:00:29]} 33. Kf1 {[%emt 0:01:04]} Qd1+ {[%emt 0:00:10]} 34. Kf2 {[%emt 0:00:06]} Qd4+ {[%emt 0:00:34]} 35. Ke1 {[%emt 0:00:02]} Qa1+ {[%emt 0:00:05]} 36. Kd2 {[%emt 0:00:53]} Qb2+ {[%emt 0:01:09]} 37. Kd1 {[%emt 0:01:35]} Qb1+ {[%emt 0:01:07]} 38. Kd2 {[%emt 0:00:02]} Qb2+ {[%emt 0:00:07]} 39. Ke1 {[%emt 0:10:56]} Qa1+ {[%emt 0:00:11]} 40. Kf2 {[%emt 0:02:59]} Qd4+ {[%emt 0:00:15]} 1/2-1/2

[Event "28th Hit Open-A 2024"]
[Site "Nova Gorica"]
[Date "2024.01.29"]
[Round "5.19"]
[White "Gregoric, Andraz"]
[Black "Jalovec, Igor"]
[Result "1/2-1/2"]
[ECO "C77"]
[WhiteElo "2217"]
[BlackElo "1703"]
[Annotator "RC"]
[PlyCount "151"]
[EventDate "2024.01.22"]
[EventType "swiss"]
[EventCountry "SLO"]
[SourceTitle "playchess.com"]
[Source "ChessBase"]
[SourceQuality "1"]
[TimeControl "5400+30"]

1. e4 {[%emt 0:00:01]} e5 {[%emt 0:00:07]} 2. Nf3 {[%emt 0:00:19]} Nc6 {[%emt 0:00:08]} 3. Bb5 {[%emt 0:00:09]} a6 {[%emt 0:00:53]} 4. Ba4 {[%emt 0:00:16]} Nf6 {[%emt 0:00:30]} 5. d3 {[%emt 0:00:05]} b5 {[%emt 0:01:20]} 6. Bb3 {[%emt 0:00:05]} Bc5 {[%emt 0:00:40]} 7. a4 {[%emt 0:00:20]} Rb8 {[%emt 0:01:17]} 8. axb5 {[%emt 0:00:13]} axb5 {[%emt 0:00:05]} 9. Nc3 {[%emt 0:02:21]} h6 {[%emt 0:06:07]} 10. O-O {[%emt 0:04:24]} d6 {[%emt 0:00:44]} 11. h3 {[%emt 0:03:11]} O-O {[%emt 0:01:00]} 12. Be3 {[%emt 0:07:43]} Bxe3 {[%emt 0:01:58]} 13. fxe3 {[%emt 0:00:02]} Ne7 {[%emt 0:02:43]} 14. Nh4 {[%emt 0:03:03]} d5 {[%emt 0:06:29]} 15. Qf3 {[%emt 0:13:40]} c6 {[%emt 0:05:23]} 16. Qg3 {[%emt 0:02:41]} Qd6 {[%emt 0:05:52]} 17. d4 {[%emt 0:02:25]} Nd7 {[%emt 0:10:02]} 18. exd5 {[%emt 0:03:17]} cxd5 {[%emt 0:02:37]} 19. Bxd5 {[%emt 0:03:37]} b4 {[%emt 0:05:26]} 20. dxe5 {[%emt 0:02:32]} Qxe5 {[%emt 0:02:15]} 21. Qxe5 {[%emt 0:01:19]} Nxe5 {[%emt 0:00:05]} 22. Ra7 {[%emt 0:06:47]} Nd7 {[%emt 0:10:04]} 23. Bb3 {[%emt 0:05:24]} bxc3 {[%emt 0:00:19]} 24. bxc3 {[%emt 0:00:04]} g5 {[%emt 0:01:40]} 25. Nf5 {[%emt 0:05:26]} Nxf5 {[%emt 0:00:06]} 26. Rxf5 {[%emt 0:00:02]} Kg7 {[%emt 0:03:41]} 27. Rc7 {[%emt 0:03:06]} Rb7 {[%emt 0:02:01]} 28. Rxb7 {[%emt 0:02:37]} Bxb7 {[%emt 0:00:04]} 29. h4 {[%emt 0:00:23]} Be4 {[%emt 0:01:33]} 30. Rb5 {[%emt 0:02:22]} gxh4 {[%emt 0:06:03]} 31. Rh5 {[%emt 0:01:05]} Rc8 {[%emt 0:01:15]} 32. Rxh4 {[%emt 0:01:01]} Bg6 {[%emt 0:00:32]} 33. Rd4 {[%emt 0:01:40]} Nc5 {[%emt 0:03:59]} 34. Bd5 {[%emt 0:01:05]} Bxc2 {[%emt 0:01:13]} 35. c4 {[%emt 0:00:03]} Na4 {[%emt 0:04:20]} 36. e4 {[%emt 0:02:21]} Nb6 {[%emt 0:00:26]} 37. e5 {[%emt 0:02:33]} Rd8 {[%emt 0:03:57]} 38. e6 {[%emt 0:04:09]} fxe6 {[%emt 0:02:14]} 39. Rg4+ {[%emt 0:00:05]} Kf6 {[%emt 0:00:36]} 40. Bf3 {[%emt 0:00:05]} Bf5 {[%emt 0:03:47]} 41. Rh4 {[%emt 0:00:13]} Kg5 {[%emt 0:00:35]} 42. Rh5+ {[%emt 0:00:02]} Kg6 {[%emt 0:00:04]} 43. g4 {[%emt 0:00:06]} Nxc4 {[%emt 0:05:04]} 44. gxf5+ {[%emt 0:00:09]} exf5 {[%emt 0:00:01]} 45. Rh4 {[%emt 0:01:56]} Ne5 {[%emt 0:00:15]} 46. Be2 {[%emt 0:02:54]} Rd2 {[%emt 0:01:08]} 47. Kf1 {[%emt 0:00:24]} Rb2 {[%emt 0:01:16]} 48. Ra4 {[%emt 0:01:05]} Kg5 {[%emt 0:00:58]} 49. Ra5 {[%emt 0:00:51]} Ng4 {[%emt 0:00:42]} 50. Bxg4 {[%emt 0:00:09]} Kxg4 {[%emt 0:00:10]} 51. Ra4+ {[%emt 0:02:08]} f4 {[%emt 0:00:15]} 52. Ra3 {[%emt 0:00:03]} h5 {[%emt 0:00:29]} 53. Kg1 {[%emt 0:01:42]} Rc2 {[%emt 0:01:31]} 54. Rb3 {[%emt 0:00:06]} Re2 {[%emt 0:00:26]} 55. Ra3 {[%emt 0:01:29]} Re3 {[%emt 0:00:45]} 56. Ra2 {[%emt 0:00:49]} h4 {[%emt 0:00:31]} 57. Rb2 {[%emt 0:02:59]} h3 {[%emt 0:00:32]} 58. Rb8 {[%emt 0:00:03]} Re1+ {[%emt 0:00:34]} 59. Kh2 {[%emt 0:00:10]} Kf3 {[%emt 0:00:18]} 60. Rb3+ {[%emt 0:01:58]} Re3 {[%emt 0:00:13]} 61. Rb4 {[%emt 0:00:17]} Re4 {[%emt 0:01:06]} 62. Rb3+ {[%emt 0:00:08]} Kf2 {[%emt 0:00:17]} 63. Rb2+ {[%emt 0:04:41]} Re2 {[%emt 0:00:24]} 64. Rb4 {[%emt 0:00:01]} f3 {[%emt 0:00:53]} 65. Rb1 {[%emt 0:04:22]} Re1 {[%emt 0:00:20]} 66. Rb2+ {[%emt 0:00:37]} Kf1 {[%emt 0:00:12]} 67. Kg3 {[%emt 0:01:03]} Re2 {[%emt 0:00:43]} 68. Rb1+ {[%emt 0:00:02]} Re1 {[%emt 0:00:02]} 69. Rb2 {[%emt 0:00:08]} Kg1 {[%emt 0:01:09]} 70. Kxf3 {[%emt 0:00:05]} h2 {[%emt 0:00:07]} 71. Rg2+ {[%emt 0:00:07]} Kh1 {[%emt 0:00:09]} 72. Ra2 {[%emt 0:01:49]} Rb1 {[%emt 0:00:16]} 73. Kg3 {[%emt 0:00:37]} Rb3+ {[%emt 0:00:41]} 74. Kf2 {[%emt 0:00:06]} Rb1 {[%emt 0:00:20]} 75. Kg3 {[%emt 0:00:05]} Rg1+ {[%emt 0:00:04]} 76. Kh3 {[%emt 0:00:09]} 1/2-1/2

[Event "28th Hit Open-A 2024"]
[Site "Nova Gorica"]
[Date "2024.01.29"]
[Round "5.20"]
[White "Siraj, Svit"]
[Black "Beber, Anja"]
[Result "1-0"]
[ECO "C26"]
[WhiteElo "2182"]
[BlackElo "1606"]
[Annotator "TA"]
[PlyCount "74"]
[EventDate "2024.01.22"]
[EventType "swiss"]
[EventCountry "SLO"]
[SourceTitle "playchess.com"]
[Source "ChessBase"]
[SourceQuality "1"]
[TimeControl "5400+30"]

{[%evp 17,74,14,14,0,20,20,17,21,34,22,50,50,69,47,66,58,62,56,89,60,100,90,104,95,118,122,137,124,136,127,163,179,191,154,144,98,706,684,877,894,953,923,1535,1468,1816,1093,1042,0,1841,2007,4849,2718,29992,29993,29994,1086,29987,29988,29998]} 1. e4 {[%emt 0:00:04]} e5 {[%emt 0:00:12]} 2. Nf3 {[%emt 0:00:11]} Nc6 {[%emt 0:00:11]} 3. Nc3 {[%emt 0:00:07]} Nf6 {[%emt 0:00:19]} 4. g3 {[%emt 0:00:42]} Bc5 {[%emt 0:03:05]} 5. Bg2 {[%emt 0:00:18]} d6 {[%emt 0:01:17]} 6. O-O {[%emt 0:00:12]} O-O {[%emt 0:01:41]} 7. d3 {[%emt 0:00:16]} h6 {[%emt 0:00:26]} 8. Na4 {[%emt 0:00:17]} Bb6 {[%emt 0:00:15]} 9. Nxb6 {[%emt 0:00:28]} axb6 {[%emt 0:00:14]} 10. Re1 {[%emt 0:00:17]} Be6 {[%emt 0:00:38][%cal Od8d7]} 11. h3 {[%emt 0:01:43]} Qd7 {[%emt 0:02:18]} 12. Kh2 {[%emt 0:00:29] The position is equal.} b5 {[%emt 0:04:02][%cal Of8e8]} 13. b3 {[%emt 0:02:40]} Rfe8 {[%emt 0:05:16]} 14. Bb2 {[%emt 0:00:44]} Rad8 {[%emt 0:03:44]} 15. d4 {[%emt 0:01:48]} exd4 {[%emt 0:00:16]} 16. Nxd4 {[%emt 0:00:04]} Nxd4 {[%emt 0:00:23]} 17. Qxd4 {[%emt 0:00:41]} c5 {[%emt 0:10:06]} 18. Qd2 {[%emt 0:01:47] Bxf6 is the strong threat.} Nh7 {[%emt 0:03:31]} 19. Rad1 {[%emt 0:01:46] White is more active.} f6 {[%emt 0:01:21]} 20. Re3 {[%emt 0:05:44]} c4 {[%emt 0:06:01]} 21. f4 {[%emt 0:02:57]} Ra8 {[%emt 0:05:22]} 22. a3 {[%emt 0:00:42]} (22. Qxd6 Qxd6 23. Rxd6 Rxa2 24. bxc4 Rxb2 $19) 22... Rad8 {[%emt 0:00:18]} 23. bxc4 {[%emt 0:02:03]} bxc4 {[%emt 0:03:15]} 24. Bc3 {[%emt 0:00:13]} f5 {[%emt 0:04:00]} 25. Rde1 {[%emt 0:05:22] Strongly threatening exf5.} fxe4 {[%emt 0:07:01]} 26. Bxe4 {[%emt 0:00:30] This pair of bishops is nice.} (26. Rxe4 $142 d5 27. Rxe6 Rxe6 28. Bxd5 Qxd5 29. Qxd5 Rxd5 30. Rxe6) 26... Nf8 {[%emt 0:03:08][%mdl 8192]} (26... Nf6 $16) 27. Qd4 $18 {[%emt 0:01:16]} Qf7 {[%emt 0:00:56] [#]} 28. f5 $1 {[%emt 0:01:31][%cal Bf4f5,Bf5e6][%mdl 544]} d5 {[%emt 0:05:29]} (28... Qf6 29. Qxf6) 29. fxe6 {[%emt 0:04:06]} Qe7 {[%emt 0:04:05]} 30. Bg2 {[%emt 0:00:38]} Nh7 {[%emt 0:01:44]} 31. Bb4 {[%emt 0:00:53]} Qf6 {[%emt 0:01:08]} 32. Bc3 {[%emt 0:01:25]} Qe7 $1 {[%emt 0:00:50]} 33. Rf1 {[%emt 0:00:20]} Nf6 {[%emt 0:00:11]} 34. Ref3 {[%emt 0:00:25][%cal Rf3f6] [#] Rxf6 would kill now.} b5 {[%emt 0:05:55]} 35. Rxf6 {[%emt 0:00:17]} gxf6 {[%emt 0:00:09]} 36. Rf3 {[%emt 0:00:05]} (36. Rxf6 $142 Qxf6 37. Qxf6 d4 38. Qf7+ (38. Bxd4 Rxd4 39. Qg6+ Kh8 40. Qxe8+ Kh7 41. Qf7+ Kh8 42. e7 Rg4 43. e8=Q+ Rg8 44. Qfxg8#) 38... Kh8 39. Be4 (39. Bxd4+ Rxd4 40. Qxe8+ Kg7 41. Qf7+ Kh8 42. e7 Rg4 43. e8=Q+ Rg8 44. Qfxg8#) 39... Re7 40. Bxd4+ Rxd4 41. Qf8#) 36... Qg7 {[%emt 0:00:21]} 37. Rxf6 {[%emt 0:00:16]} Qf8 {[%emt 0:00:26] Weighted Error Value: White=0.40/Black=0.82.  Loses game:     	---       	Black=1      Mistake:       	White=1     	---        Inaccurate:     	White=1     	Black=4      OK:         	White=10    	Black=2} 1-0

[Event "28th Hit Open-A 2024"]
[Site "Nova Gorica"]
[Date "2024.01.29"]
[Round "5.21"]
[White "Belyaletdinov, Leonard"]
[Black "Trybus, Daniel"]
[Result "0-1"]
[ECO "A40"]
[WhiteElo "1581"]
[BlackElo "2039"]
[Annotator "NA RC"]
[PlyCount "58"]
[EventDate "2024.01.22"]
[EventType "swiss"]
[EventCountry "SLO"]
[SourceTitle "playchess.com"]
[Source "ChessBase"]
[SourceQuality "1"]
[TimeControl "5400+30"]

1. d4 {[%emt 0:00:02]} g6 {[%emt 0:00:39]} 2. Nf3 {[%emt 0:00:03]} Bg7 {[%emt 0:00:04]} 3. e3 {[%emt 0:00:14]} d6 {[%emt 0:01:57]} 4. Bd3 {[%emt 0:00:48]} Nd7 {[%emt 0:00:36]} 5. b3 {[%emt 0:00:25]} e5 {[%emt 0:00:37]} 6. Bb2 {[%emt 0:00:46]} Qe7 {[%emt 0:01:52]} 7. Nbd2 {[%emt 0:01:21]} Ngf6 {[%emt 0:00:49]} 8. e4 {[%emt 0:03:06]} exd4 {[%emt 0:04:17]} 9. Nxd4 {[%emt 0:05:59]} O-O {[%emt 0:03:28]} 10. O-O {[%emt 0:01:03]} Nh5 {[%emt 0:02:22]} 11. Rb1 {[%emt 0:09:23]} Nf4 {[%emt 0:01:14]} 12. Qg4 {[%emt 0:06:23]} Nxd3 {[%emt 0:03:10]} 13. Nf5 {[%emt 0:00:19]} Qe6 {[%emt 0:05:50]} 14. Bxg7 {[%emt 0:01:00]} N7e5 {[%emt 0:26:24]} 15. Qg3 {[%emt 0:04:13]} gxf5 {[%emt 0:03:04]} 16. Bxf8+ {[%emt 0:00:54]} Kxf8 {[%emt 0:00:16]} 17. cxd3 {[%emt 0:00:07]} Qh6 {[%emt 0:00:44]} 18. Nc4 {[%emt 0:01:39]} f4 {[%emt 0:00:29]} 19. Nxe5 {[%emt 0:00:47]} fxg3 {[%emt 0:02:48]} 20. Nf3 {[%emt 0:00:06]} Bg4 {[%emt 0:01:26]} 21. hxg3 {[%emt 0:00:21]} Bxf3 {[%emt 0:00:05]} 22. gxf3 {[%emt 0:00:06]} Qh3 {[%emt 0:00:04]} 23. Rbc1 {[%emt 0:00:16]} c6 {[%emt 0:00:04]} 24. Rc4 {[%emt 0:00:33]} Ke7 {[%emt 0:00:17]} 25. d4 {[%emt 0:00:27]} Rg8 {[%emt 0:00:17]} 26. Rc2 {[%emt 0:00:07]} h5 {[%emt 0:00:11]} 27. d5 {[%emt 0:00:11]} h4 {[%emt 0:00:22]} 28. Re1 {[%emt 0:02:05]} hxg3 {[%emt 0:00:17]} 29. fxg3 {[%emt 0:00:07]} Qxg3+ {[%emt 0:00:11]} 0-1

[Event "28th Hit Open-A 2024"]
[Site "Nova Gorica"]
[Date "2024.01.29"]
[Round "5.22"]
[White "Davies, Nigel R"]
[Black "Kejzar, Petra"]
[Result "1-0"]
[ECO "C00"]
[WhiteElo "2349"]
[BlackElo "2025"]
[Annotator "TA"]
[PlyCount "57"]
[EventDate "2024.01.22"]
[EventType "swiss"]
[EventCountry "SLO"]
[SourceTitle "playchess.com"]
[Source "ChessBase"]
[SourceQuality "1"]
[TimeControl "5400+30"]

{[%evp 15,57,-9,0,-20,-21,-38,31,38,50,50,42,21,65,20,35,32,46,54,70,70,72,66,75,54,80,105,109,29,199,200,418,264,239,218,498,398,413,398,630,636,634,630,1229,1222]} 1. Nf3 {[%emt 0:06:23]} Nf6 {[%emt 0:00:17]} 2. g3 {[%emt 0:00:11]} d5 {[%emt 0:00:07]} 3. Bg2 {[%emt 0:00:05]} e6 {[%emt 0:00:49]} 4. O-O {[%emt 0:00:08]} Be7 {[%emt 0:00:17]} 5. d3 {[%emt 0:00:22]} O-O {[%emt 0:00:30]} 6. Nbd2 {[%emt 0:00:06]} c5 {[%emt 0:04:39]} 7. e4 {[%emt 0:00:08]} Nc6 {[%emt 0:00:11]} 8. Re1 {[%emt 0:00:08]} a6 {[%emt 0:02:32]} 9. e5 {[%emt 0:02:22]} Nd7 {[%emt 0:00:22][%cal Bf6d7,Bd7e5,Be5g6][%mdl 32]} 10. Nf1 {[%emt 0:00:23]} f6 {[%emt 0:04:33]} (10... b5 $15) 11. exf6 $14 {[%emt 0:01:52] White is slightly better.} Bxf6 {[%emt 0:02:35]} 12. Ne3 {[%emt 0:11:37]} ({Of course not} 12. Rxe6 Nde5 13. Rxe5 Nxe5 14. Nxe5 Bxe5 $17) 12... Nde5 {[%emt 0:02:45]} 13. Nd2 {[%emt 0:03:27]} Nb4 {[%emt 0:17:39]} 14. Bf1 {[%emt 0:07:39]} b5 {[%emt 0:02:22]} 15. f4 {[%emt 0:01:42]} Ng6 {[%emt 0:00:52]} 16. Bg2 {[%emt 0:08:25]} Ra7 {[%emt 0:02:10]} 17. Nf3 {[%emt 0:01:20]} Nc6 {[%emt 0:09:30]} 18. Ng4 {[%emt 0:01:09]} Be7 {[%emt 0:00:32]} 19. h4 {[%emt 0:02:22]} h5 {[%emt 0:09:19]} 20. Nf2 {[%emt 0:01:40]} Qe8 {[%emt 0:02:41]} 21. Nh3 {[%emt 0:00:45]} ({Better is} 21. c3 $16) 21... Bd6 $2 {[%emt 0:06:24] A mistake that costs the game.} (21... e5 $1 $11 {and Black stays safe.}) 22. Nfg5 $18 {[%emt 0:00:49]} Nd4 $2 {[%emt 0:00:57]} (22... Nh8 {was necessary.} 23. Bxd5 Nd4) 23. c3 {[%emt 0:11:11][%cal Od1h5] [#] Qxh5! would now be deadly.} Nf5 {[%emt 0:00:31]} 24. Qxh5 $40 {[%emt 0:00:46][%csl Gg5][%cal Rh5h7][%mdl 128] White has strong attack.} Rf6 $2 {[%emt 0:00:16]} (24... Nh6 25. f5 Rxf5) 25. Qh7+ {[%emt 0:02:33]} Kf8 {[%emt 0:00:01]} 26. h5 {[%emt 0:00:11]} Ke7 {[%emt 0:05:23]} (26... Ngh4 $142) 27. hxg6 {[%emt 0:00:20] White is clearly winning.} Rxg6 {[%emt 0:01:07]} 28. g4 {[%emt 0:01:11]} Nh6 {[%emt 0:03:01]} 29. f5 {[%emt 0:00:31] Weighted Error Value: White=0.27 (precise) /Black=0.83.  Loses game:     	---       	Black=1      Mistake:       	White=1     	Black=4      Inaccurate:     	White=2     	Black=2      OK:         	White=7     	Black=4      Best:        	White=2     	---} 1-0

[Event "28th Hit Open-A 2024"]
[Site "Nova Gorica"]
[Date "2024.01.29"]
[Round "5.23"]
[White "Zupancic, Urban"]
[Black "Hrescak, Ivana"]
[Result "1-0"]
[ECO "B06"]
[WhiteElo "2025"]
[BlackElo "2117"]
[Annotator "RC"]
[PlyCount "95"]
[EventDate "2024.01.22"]
[EventType "swiss"]
[EventCountry "SLO"]
[SourceTitle "playchess.com"]
[Source "ChessBase"]
[SourceQuality "1"]
[TimeControl "5400+30"]

1. e4 {[%emt 0:00:08]} d6 {[%emt 0:00:43]} 2. d4 {[%emt 0:00:16]} g6 {[%emt 0:00:10]} 3. Nc3 {[%emt 0:01:29]} Bg7 {[%emt 0:00:06]} 4. Nge2 {[%emt 0:01:59]} a6 {[%emt 0:03:30]} 5. a4 {[%emt 0:01:55]} b6 {[%emt 0:00:37]} 6. g3 {[%emt 0:02:27]} Bb7 {[%emt 0:03:29]} 7. Bg2 {[%emt 0:00:53]} Nd7 {[%emt 0:06:04]} 8. O-O {[%emt 0:01:36]} c5 {[%emt 0:02:05]} 9. Be3 {[%emt 0:14:42]} Qc7 {[%emt 0:03:59]} 10. f4 {[%emt 0:36:56]} Ngf6 {[%emt 0:20:59]} 11. h3 {[%emt 0:02:56]} cxd4 {[%emt 0:05:30]} 12. Bxd4 {[%emt 0:02:32]} e5 {[%emt 0:00:37]} 13. Be3 {[%emt 0:08:38]} Nc5 {[%emt 0:04:28]} 14. fxe5 {[%emt 0:04:44]} dxe5 {[%emt 0:00:07]} 15. Nd5 {[%emt 0:02:12]} Nxd5 {[%emt 0:02:05]} 16. exd5 {[%emt 0:00:09]} Qd6 {[%emt 0:00:37]} 17. Nc3 {[%emt 0:03:47]} f5 {[%emt 0:13:11]} 18. a5 {[%emt 0:02:36]} b5 {[%emt 0:04:27]} 19. g4 {[%emt 0:02:56]} b4 {[%emt 0:21:47]} 20. Na4 {[%emt 0:01:42]} Nxa4 {[%emt 0:00:48]} 21. Rxa4 {[%emt 0:00:07]} f4 {[%emt 0:01:31]} 22. Bd2 {[%emt 0:01:39]} Qc5+ {[%emt 0:00:03]} 23. Kh2 {[%emt 0:00:30]} Rc8 {[%emt 0:02:39]} 24. Be4 {[%emt 0:00:51]} b3 {[%emt 0:01:01]} 25. cxb3 {[%emt 0:01:07]} Qb5 {[%emt 0:01:16]} 26. Rb4 {[%emt 0:01:06]} Qd7 {[%emt 0:00:01]} 27. Bc3 {[%emt 0:02:05]} Rc5 {[%emt 0:00:36]} 28. Rc4 {[%emt 0:00:40]} Rb5 {[%emt 0:00:25]} 29. Re1 {[%emt 0:01:41]} O-O {[%emt 0:00:26]} 30. b4 {[%emt 0:00:36]} Bxd5 {[%emt 0:01:26]} 31. Rc5 {[%emt 0:00:14]} Rxc5 {[%emt 0:00:17]} 32. bxc5 {[%emt 0:00:05]} Be6 {[%emt 0:00:54]} 33. Qxd7 {[%emt 0:00:51]} Bxd7 {[%emt 0:00:01]} 34. Bd5+ {[%emt 0:00:07]} Kh8 {[%emt 0:00:08]} 35. c6 {[%emt 0:00:33]} Bc8 {[%emt 0:00:29]} 36. Rxe5 {[%emt 0:01:07]} h6 {[%emt 0:01:02]} 37. Re7 {[%emt 0:00:21]} Bxc3 {[%emt 0:00:23]} 38. bxc3 {[%emt 0:00:04]} f3 {[%emt 0:00:20]} 39. Kg1 {[%emt 0:01:02]} f2+ {[%emt 0:01:03]} 40. Kf1 {[%emt 0:00:05]} h5 {[%emt 0:00:27]} 41. Be6 {[%emt 0:00:18]} hxg4 {[%emt 0:00:35]} 42. hxg4 {[%emt 0:00:20]} Bxe6 {[%emt 0:00:07]} 43. Rxe6 {[%emt 0:00:05]} Kg7 {[%emt 0:00:58]} 44. c7 {[%emt 0:00:50]} Rc8 {[%emt 0:00:14]} 45. Rc6 {[%emt 0:00:13]} Kf7 {[%emt 0:00:18]} 46. Kxf2 {[%emt 0:00:14]} Ke8 {[%emt 0:00:20]} 47. Ke3 {[%emt 0:01:56]} g5 {[%emt 0:00:07]} 48. Ke4 {[%emt 0:00:25]} 1-0

[Event "28th Hit Open-A 2024"]
[Site "Nova Gorica"]
[Date "2024.01.29"]
[Round "5.24"]
[White "Dorokhina, Elizaveta"]
[Black "Mazzi, Leonardo"]
[Result "1-0"]
[ECO "D02"]
[WhiteElo "1994"]
[BlackElo "1647"]
[Annotator "NA RC"]
[PlyCount "61"]
[EventDate "2024.01.22"]
[EventType "swiss"]
[EventCountry "SLO"]
[SourceTitle "playchess.com"]
[Source "ChessBase"]
[SourceQuality "1"]
[TimeControl "5400+30"]

1. d4 {[%emt 0:10:31]} d5 {[%emt 0:00:12]} 2. Bf4 {[%emt 0:00:10]} Nf6 {[%emt 0:00:23]} 3. e3 {[%emt 0:00:12]} c5 {[%emt 0:00:10]} 4. Nf3 {[%emt 0:00:06]} Nc6 {[%emt 0:00:11]} 5. Nbd2 {[%emt 0:00:09]} Bf5 {[%emt 0:03:55]} 6. dxc5 {[%emt 0:02:33]} e6 {[%emt 0:12:04]} 7. Nd4 {[%emt 0:03:28]} Bg6 {[%emt 0:00:19]} 8. Bb5 {[%emt 0:02:55]} Qd7 {[%emt 0:01:45]} 9. N2f3 {[%emt 0:03:13]} Bh5 {[%emt 0:03:59]} 10. b4 {[%emt 0:02:39]} Ne4 {[%emt 0:01:33]} 11. c4 {[%emt 0:11:04]} a6 {[%emt 0:12:43]} 12. cxd5 {[%emt 0:05:54]} exd5 {[%emt 0:01:07]} 13. Bxc6 {[%emt 0:05:40]} bxc6 {[%emt 0:00:03]} 14. Qa4 {[%emt 0:00:12]} Bxf3 {[%emt 0:06:46]} 15. gxf3 {[%emt 0:00:23]} Nf6 {[%emt 0:01:29]} 16. Qxc6 {[%emt 0:00:19]} Qxc6 {[%emt 0:01:21]} 17. Nxc6 {[%emt 0:00:05]} a5 {[%emt 0:00:31]} 18. Nxa5 {[%emt 0:00:52]} Be7 {[%emt 0:00:25]} 19. Nc6 {[%emt 0:00:19]} Nh5 {[%emt 0:00:56]} 20. Be5 {[%emt 0:00:18]} Bf6 {[%emt 0:00:14]} 21. a4 {[%emt 0:00:26]} O-O {[%emt 0:00:21]} 22. Bxf6 {[%emt 0:00:44]} Nxf6 {[%emt 0:00:09]} 23. Ke2 {[%emt 0:00:08]} Rfe8 {[%emt 0:00:37]} 24. Rhd1 {[%emt 0:00:25]} Rac8 {[%emt 0:00:32]} 25. b5 {[%emt 0:00:23]} Nh5 {[%emt 0:00:22]} 26. a5 {[%emt 0:00:22]} Nf4+ {[%emt 0:00:30]} 27. Kf1 {[%emt 0:00:30]} Nh3 {[%emt 0:00:24]} 28. a6 {[%emt 0:00:24]} Re6 {[%emt 0:00:09]} 29. a7 {[%emt 0:00:18]} Rg6 {[%emt 0:00:16]} 30. a8=Q {[%emt 0:00:23]} Rg1+ {[%emt 0:00:09]} 31. Ke2 {[%emt 0:00:05]} 1-0

[Event "28th Hit Open-A 2024"]
[Site "Nova Gorica"]
[Date "2024.01.29"]
[Round "5.25"]
[White "Privitera, Franco"]
[Black "Gergolet, Jan"]
[Result "1/2-1/2"]
[ECO "A34"]
[WhiteElo "1919"]
[BlackElo "1632"]
[Annotator "NA RC"]
[PlyCount "60"]
[EventDate "2024.01.22"]
[EventType "swiss"]
[EventCountry "SLO"]
[SourceTitle "playchess.com"]
[Source "ChessBase"]
[SourceQuality "1"]
[TimeControl "5400+30"]

1. Nf3 {[%emt 0:00:16]} c5 {[%emt 0:00:21]} 2. c4 {[%emt 0:00:30]} Nf6 {[%emt 0:00:32]} 3. Nc3 {[%emt 0:00:09]} g6 {[%emt 0:00:56]} 4. e4 {[%emt 0:00:45]} Bg7 {[%emt 0:00:33]} 5. d3 {[%emt 0:00:21]} O-O {[%emt 0:03:31]} 6. Be2 {[%emt 0:02:27]} Nc6 {[%emt 0:01:01]} 7. O-O {[%emt 0:01:40]} a6 {[%emt 0:01:55]} 8. Rb1 {[%emt 0:05:22]} Nd4 {[%emt 0:14:35]} 9. Nxd4 {[%emt 0:05:59]} cxd4 {[%emt 0:00:03]} 10. Nd5 {[%emt 0:00:23]} Nxd5 {[%emt 0:02:06]} 11. exd5 {[%emt 0:00:38]} e5 {[%emt 0:01:49]} 12. f4 {[%emt 0:03:10]} d6 {[%emt 0:02:24]} 13. fxe5 {[%emt 0:03:33]} dxe5 {[%emt 0:00:55]} 14. Bf3 {[%emt 0:03:51]} f5 {[%emt 0:02:25]} 15. Bd2 {[%emt 0:02:00]} Re8 {[%emt 0:03:00]} 16. Qc2 {[%emt 0:00:55]} g5 {[%emt 0:11:24]} 17. g3 {[%emt 0:02:19]} f4 {[%emt 0:09:16]} 18. gxf4 {[%emt 0:18:33]} Bh3 {[%emt 0:03:11]} 19. fxg5 {[%emt 0:08:38]} Rf8 {[%emt 0:07:37]} 20. Bg2 {[%emt 0:04:00]} Qd7 {[%emt 0:01:04]} 21. Bb4 {[%emt 0:00:14]} Rf4 {[%emt 0:01:44]} 22. Rxf4 {[%emt 0:05:44]} exf4 {[%emt 0:00:25]} 23. Rf1 {[%emt 0:00:20]} Qg4 {[%emt 0:03:48]} 24. Rf3 {[%emt 0:00:26]} Re8 {[%emt 0:01:50]} 25. Rxh3 {[%emt 0:00:33]} Re2 {[%emt 0:00:10]} 26. Qxe2 {[%emt 0:00:40]} Qxe2 {[%emt 0:00:07]} 27. Ba3 {[%emt 0:05:13]} Qd1+ {[%emt 0:05:02]} 28. Kf2 {[%emt 0:03:20]} Qc2+ {[%emt 0:04:26]} 29. Kf1 {[%emt 0:04:33]} Qd1+ {[%emt 0:02:05]} 30. Kf2 {[%emt 0:00:10]} Qg4 {[%emt 0:00:35]} 1/2-1/2